[Event "Titled Tuesday Blitz April 12 Early 2022"]
[White "Aitbayev, Aslan"]
[Black "Tari, Aryan"]
[WhiteFideId "13704613"]
[BlackFideId "1510045"]
[WhiteElo "2385"]
[BlackElo "2567"]
[Result "0-1"]
[Round "06"]
[TimeControl "180+1"]
[Date "2022.04.12"]
[WhiteClock "0:00:04"]
[BlackClock "0:00:16"]

1. e4 {[%clk 0:03:00]}  c6 {[%clk 0:02:47]} 2. d4 {[%clk 0:03:00]}  d5 {[%clk 0:02:47]} 3. e5 {[%clk 0:03:00]}  Bf5 {[%clk 0:02:47]} 4. Nd2 {[%clk 0:03:00]}  a5 {[%clk 0:02:41]} 5. a4 {[%clk 0:02:47]}  e6 {[%clk 0:02:38]} 6. Nb3 {[%clk 0:02:47]}  Nd7 {[%clk 0:02:39]} 7. Nf3 {[%clk 0:02:47]}  Qc7 {[%clk 0:02:37]} 8. Be2 {[%clk 0:02:31]}  f6 {[%clk 0:02:37]} 9. O-O {[%clk 0:02:31]}  fxe5 {[%clk 0:02:37]} 10. dxe5 {[%clk 0:02:25]}  Nxe5 {[%clk 0:02:37]} 11. Nfd4 {[%clk 0:02:24]}  Nf6 {[%clk 0:02:37]} 12. f4 {[%clk 0:02:16]}  Neg4 {[%clk 0:02:37]} 13. h3 {[%clk 0:02:08]}  h5 {[%clk 0:02:38]} 14. Bd3 {[%clk 0:02:03]}  g6 {[%clk 0:02:27]} 15. Re1 {[%clk 0:01:39]}  Ne4 {[%clk 0:02:18]} 16. Nxf5 {[%clk 0:01:18]}  gxf5 {[%clk 0:02:18]} 17. Bxe4 {[%clk 0:01:10]}  dxe4 {[%clk 0:02:16]} 18. hxg4 {[%clk 0:01:10]}  hxg4 {[%clk 0:02:12]} 19. Be3 {[%clk 0:01:01]}  g3 {[%clk 0:02:11]} 20. Qd4 {[%clk 0:00:55]}  Bg7 {[%clk 0:02:04]} 21. Qc4 {[%clk 0:00:50]}  Qf7 {[%clk 0:01:22]} 22. Nc5 {[%clk 0:00:44]}  Rh6 {[%clk 0:01:10]} 23. Rad1 {[%clk 0:00:38]}  Bf8 {[%clk 0:00:52]} 24. Nd7 {[%clk 0:00:19]}  Qh5 {[%clk 0:00:47]} 25. Kf1 {[%clk 0:00:15]}  Qg4 {[%clk 0:00:47]} 26. Bg1 {[%clk 0:00:13]}  Qxf4+ {[%clk 0:00:43]} 27. Ke2 {[%clk 0:00:13]}  Qg4+ {[%clk 0:00:43]} 28. Kf1 {[%clk 0:00:14]}  Be7 {[%clk 0:00:36]} 29. Qc3 {[%clk 0:00:10]}  Qf4+ {[%clk 0:00:29]} 30. Ke2 {[%clk 0:00:10]}  Qg4+ {[%clk 0:00:30]} 31. Kf1 {[%clk 0:00:10]}  Rd8 {[%clk 0:00:26]} 32. Ne5 {[%clk 0:00:10]}  Qxd1 {[%clk 0:00:23]} 33. Rxd1 {[%clk 0:00:09]}  Rxd1+ {[%clk 0:00:24]} 34. Ke2 {[%clk 0:00:09]}  Rxg1 {[%clk 0:00:25]} 35. Qd4 {[%clk 0:00:06]}  Rxg2+ {[%clk 0:00:24]} 36. Kf1 {[%clk 0:00:06]}  Rxc2 {[%clk 0:00:15]} 37. Qd7+ {[%clk 0:00:05]}  Kf8 {[%clk 0:00:15]} 38. Qc8+ {[%clk 0:00:04]}  Kg7 {[%clk 0:00:16]} 0-1


[Site "https://www.chess.com"]

[Event "Titled Tuesday Blitz April 12 Early 2022"]
[White "Andreikin, Dmitry"]
[Black "Sapunov, Evgeny"]
[WhiteFideId "4158814"]
[BlackFideId "4126661"]
[WhiteElo "2736"]
[BlackElo "2470"]
[Result "1-0"]
[Round "06"]
[TimeControl "180+1"]
[Date "2022.04.12"]
[WhiteClock "0:00:11"]
[BlackClock "0:00:08"]

1. d4 {[%clk 0:03:00]}  Nf6 {[%clk 0:02:57]} 2. c4 {[%clk 0:03:00]}  e6 {[%clk 0:02:56]} 3. Nc3 {[%clk 0:02:58]}  d5 {[%clk 0:02:56]} 4. cxd5 {[%clk 0:02:58]}  exd5 {[%clk 0:02:54]} 5. Bg5 {[%clk 0:02:57]}  Be7 {[%clk 0:02:53]} 6. e3 {[%clk 0:02:57]}  c6 {[%clk 0:02:52]} 7. Bd3 {[%clk 0:02:57]}  Nbd7 {[%clk 0:02:50]} 8. Nge2 {[%clk 0:02:50]}  Nf8 {[%clk 0:02:46]} 9. h4 {[%clk 0:02:47]}  Ne6 {[%clk 0:02:46]} 10. Nf4 {[%clk 0:02:38]}  h6 {[%clk 0:02:42]} 11. Nxe6 {[%clk 0:02:35]}  Bxe6 {[%clk 0:02:42]} 12. Bf4 {[%clk 0:02:36]}  Qd7 {[%clk 0:02:41]} 13. Qb3 {[%clk 0:02:33]}  O-O {[%clk 0:02:26]} 14. Ne2 {[%clk 0:02:28]}  a5 {[%clk 0:02:24]} 15. a3 {[%clk 0:02:24]}  Bf5 {[%clk 0:02:11]} 16. Ng3 {[%clk 0:02:18]}  Bxd3 {[%clk 0:02:08]} 17. Qxd3 {[%clk 0:02:19]}  Rfe8 {[%clk 0:02:05]} 18. h5 {[%clk 0:02:17]}  Bd6 {[%clk 0:01:59]} 19. Bxd6 {[%clk 0:02:15]}  Qxd6 {[%clk 0:01:59]} 20. Nf5 {[%clk 0:02:15]}  Qe6 {[%clk 0:01:52]} 21. f3 {[%clk 0:02:14]}  Nd7 {[%clk 0:01:47]} 22. Kf2 {[%clk 0:02:11]}  Nb6 {[%clk 0:01:47]} 23. g4 {[%clk 0:02:04]}  Nc4 {[%clk 0:01:39]} 24. Rag1 {[%clk 0:02:03]}  Nxb2 {[%clk 0:01:35]} 25. Qc3 {[%clk 0:01:47]}  Nc4 {[%clk 0:01:34]} 26. Qd3 {[%clk 0:01:44]}  f6 {[%clk 0:01:27]} 27. Nxh6+ {[%clk 0:01:26]}  gxh6 {[%clk 0:01:26]} 28. Qg6+ {[%clk 0:01:26]}  Kf8 {[%clk 0:01:26]} 29. Qxh6+ {[%clk 0:01:27]}  Ke7 {[%clk 0:01:25]} 30. Re1 {[%clk 0:01:24]}  Kd7 {[%clk 0:01:23]} 31. Qh7+ {[%clk 0:01:20]}  Re7 {[%clk 0:01:20]} 32. Qb1 {[%clk 0:01:20]}  b5 {[%clk 0:01:20]} 33. h6 {[%clk 0:01:20]}  Rh8 {[%clk 0:01:19]} 34. Qg6 {[%clk 0:01:16]}  Kc7 {[%clk 0:01:12]} 35. e4 {[%clk 0:01:09]}  Rf7 {[%clk 0:01:05]} 36. e5 {[%clk 0:00:56]}  Kd7 {[%clk 0:00:58]} 37. Kg3 {[%clk 0:00:40]}  fxe5 {[%clk 0:00:33]} 38. Qxe6+ {[%clk 0:00:38]}  Kxe6 {[%clk 0:00:34]} 39. dxe5 {[%clk 0:00:39]}  d4 {[%clk 0:00:27]} 40. f4 {[%clk 0:00:38]}  Ne3 {[%clk 0:00:27]} 41. g5 {[%clk 0:00:36]}  Kf5 {[%clk 0:00:25]} 42. Kf3 {[%clk 0:00:34]}  c5 {[%clk 0:00:26]} 43. Reg1 {[%clk 0:00:26]}  Kg6 {[%clk 0:00:21]} 44. Ke4 {[%clk 0:00:26]}  Rhf8 {[%clk 0:00:18]} 45. Rh4 {[%clk 0:00:21]}  b4 {[%clk 0:00:19]} 46. axb4 {[%clk 0:00:20]}  axb4 {[%clk 0:00:19]} 47. Ra1 {[%clk 0:00:20]}  Ng2 {[%clk 0:00:19]} 48. Ra6+ {[%clk 0:00:20]}  Kh7 {[%clk 0:00:17]} 49. g6+ {[%clk 0:00:21]}  Kh8 {[%clk 0:00:17]} 50. g7+ {[%clk 0:00:18]}  Kh7 {[%clk 0:00:16]} 51. gxf8=N+ {[%clk 0:00:17]}  Rxf8 {[%clk 0:00:16]} 52. Rg4 {[%clk 0:00:14]}  Ne3 {[%clk 0:00:13]} 53. Rg7+ {[%clk 0:00:14]}  Kh8 {[%clk 0:00:14]} 54. Raa7 {[%clk 0:00:11]}  Rb8 {[%clk 0:00:08]} 55. Rh7+ {[%clk 0:00:11]} 1-0


[Site "https://www.chess.com"]

[Event "Titled Tuesday Blitz April 12 Early 2022"]
[White "Antonio, Jorge Carlos"]
[Black "Fernandez Siles, Luis"]
[WhiteFideId "113190"]
[BlackFideId "2209420"]
[WhiteElo "2247"]
[BlackElo "2212"]
[Result "0-1"]
[Round "06"]
[TimeControl "180+1"]
[Date "2022.04.13"]
[WhiteClock "0:00:15"]
[BlackClock "0:00:16"]

1. d4 {[%clk 0:03:00]}  Nf6 {[%clk 0:02:57]} 2. Nf3 {[%clk 0:03:00]}  g6 {[%clk 0:02:56]} 3. c4 {[%clk 0:03:00]}  Bg7 {[%clk 0:02:56]} 4. Nc3 {[%clk 0:03:01]}  O-O {[%clk 0:02:57]} 5. e4 {[%clk 0:03:01]}  d6 {[%clk 0:02:57]} 6. Be2 {[%clk 0:03:01]}  c5 {[%clk 0:02:57]} 7. O-O {[%clk 0:02:54]}  Nc6 {[%clk 0:02:57]} 8. Be3 {[%clk 0:02:52]}  Ng4 {[%clk 0:02:54]} 9. Qd2 {[%clk 0:02:38]}  Nxe3 {[%clk 0:02:50]} 10. fxe3 {[%clk 0:02:38]}  Bg4 {[%clk 0:02:44]} 11. h3 {[%clk 0:02:37]}  Bxf3 {[%clk 0:02:43]} 12. gxf3 {[%clk 0:02:37]}  cxd4 {[%clk 0:02:43]} 13. exd4 {[%clk 0:02:25]}  Nxd4 {[%clk 0:02:41]} 14. Nd5 {[%clk 0:02:15]}  e6 {[%clk 0:02:32]} 15. Nc3 {[%clk 0:02:07]}  Qh4 {[%clk 0:02:29]} 16. Kh2 {[%clk 0:02:02]}  f5 {[%clk 0:01:57]} 17. Bd3 {[%clk 0:01:52]}  Bh6 {[%clk 0:01:47]} 18. Qg2 {[%clk 0:01:33]}  Bf4+ {[%clk 0:01:27]} 19. Kg1 {[%clk 0:01:33]}  Bg3 {[%clk 0:01:18]} 20. Ne2 {[%clk 0:01:25]}  Nxe2+ {[%clk 0:01:13]} 21. Bxe2 {[%clk 0:01:23]}  d5 {[%clk 0:01:02]} 22. exd5 {[%clk 0:01:20]}  exd5 {[%clk 0:01:02]} 23. cxd5 {[%clk 0:01:18]}  Rae8 {[%clk 0:00:47]} 24. f4 {[%clk 0:00:55]}  Bxf4 {[%clk 0:00:37]} 25. Bf3 {[%clk 0:00:36]}  Bd6 {[%clk 0:00:31]} 26. Rad1 {[%clk 0:00:32]}  Re3 {[%clk 0:00:29]} 27. Qf2 {[%clk 0:00:23]}  Qxh3 {[%clk 0:00:22]} 28. Qg2 {[%clk 0:00:19]}  Qh4 {[%clk 0:00:18]} 29. Qf2 {[%clk 0:00:19]}  Qf4 {[%clk 0:00:18]} 30. Kg2 {[%clk 0:00:16]}  Rfe8 {[%clk 0:00:18]} 31. Kg1 {[%clk 0:00:15]}  Rxf3 {[%clk 0:00:16]} 32. Qxf3 {[%clk 0:00:15]}  Qh2# {[%clk 0:00:16]} 0-1


[Site "https://www.chess.com"]

[Event "Titled Tuesday Blitz April 12 Early 2022"]
[White "Atakhan, Abtin"]
[Black "Le Ruyet, Leopold"]
[WhiteFideId "22502203"]
[BlackFideId "645923"]
[WhiteElo "2094"]
[BlackElo "2276"]
[Result "1-0"]
[Round "06"]
[TimeControl "180+1"]
[Date "2022.04.13"]
[WhiteClock "0:00:20"]
[BlackClock "0:00:02"]

1. c4 {[%clk 0:03:00]}  Nf6 {[%clk 0:02:59]} 2. g3 {[%clk 0:03:01]}  g6 {[%clk 0:02:59]} 3. Bg2 {[%clk 0:03:02]}  Bg7 {[%clk 0:02:59]} 4. Nc3 {[%clk 0:03:02]}  O-O {[%clk 0:02:59]} 5. Nf3 {[%clk 0:03:03]}  d6 {[%clk 0:03:00]} 6. O-O {[%clk 0:03:02]}  c6 {[%clk 0:02:59]} 7. d3 {[%clk 0:03:01]}  e5 {[%clk 0:02:58]} 8. Rb1 {[%clk 0:03:00]}  a5 {[%clk 0:02:57]} 9. a3 {[%clk 0:03:00]}  Nh5 {[%clk 0:02:51]} 10. b4 {[%clk 0:02:55]}  axb4 {[%clk 0:02:51]} 11. axb4 {[%clk 0:02:56]}  f5 {[%clk 0:02:51]} 12. Bb2 {[%clk 0:02:57]}  Be6 {[%clk 0:02:44]} 13. Ra1 {[%clk 0:02:54]}  Nd7 {[%clk 0:02:39]} 14. Nd2 {[%clk 0:02:52]}  Rxa1 {[%clk 0:02:28]} 15. Qxa1 {[%clk 0:02:49]}  f4 {[%clk 0:02:29]} 16. b5 {[%clk 0:02:47]}  fxg3 {[%clk 0:02:16]} 17. hxg3 {[%clk 0:02:46]}  Qb6 {[%clk 0:02:11]} 18. Nde4 {[%clk 0:02:31]}  h6 {[%clk 0:01:47]} 19. Na4 {[%clk 0:01:47]}  Qa7 {[%clk 0:01:44]} 20. b6 {[%clk 0:01:45]}  Nxb6 {[%clk 0:01:40]} 21. Nxb6 {[%clk 0:01:44]}  Qxb6 {[%clk 0:01:39]} 22. c5 {[%clk 0:01:45]}  Qb5 {[%clk 0:01:09]} 23. cxd6 {[%clk 0:01:38]}  Bg4 {[%clk 0:01:06]} 24. Ba3 {[%clk 0:01:22]}  Bxe2 {[%clk 0:00:55]} 25. Qa2+ {[%clk 0:01:22]}  Kh7 {[%clk 0:00:50]} 26. Qxe2 {[%clk 0:01:23]}  Qa4 {[%clk 0:00:37]} 27. Bc5 {[%clk 0:01:19]}  Qb3 {[%clk 0:00:32]} 28. Nd2 {[%clk 0:01:11]}  Qc2 {[%clk 0:00:29]} 29. Ba3 {[%clk 0:00:51]}  Qa2 {[%clk 0:00:20]} 30. Bb4 {[%clk 0:00:35]}  b6 {[%clk 0:00:20]} 31. d7 {[%clk 0:00:33]}  c5 {[%clk 0:00:20]} 32. Bc3 {[%clk 0:00:30]}  Qc2 {[%clk 0:00:19]} 33. Bxe5 {[%clk 0:00:30]}  Nf6 {[%clk 0:00:08]} 34. Bxf6 {[%clk 0:00:28]}  Bxf6 {[%clk 0:00:07]} 35. Qe8 {[%clk 0:00:27]}  Kg7 {[%clk 0:00:08]} 36. Be4 {[%clk 0:00:25]}  Rf7 {[%clk 0:00:02]} 37. Nf3 {[%clk 0:00:20]} 1-0


[Site "https://www.chess.com"]

[Event "Titled Tuesday Blitz April 12 Early 2022"]
[White "Bintang, Rasyid A. Hidayat"]
[Black "Biletskiy, Danylo"]
[WhiteFideId "7105355"]
[BlackFideId "14155419"]
[WhiteElo "2402"]
[BlackElo "2087"]
[Result "0-1"]
[Round "06"]
[TimeControl "180+1"]
[Date "2022.04.13"]
[WhiteClock "0:00:13"]
[BlackClock "0:00:34"]

1. d4 {[%clk 0:03:00]}  d5 {[%clk 0:02:59]} 2. Bf4 {[%clk 0:03:00]}  c6 {[%clk 0:02:59]} 3. e3 {[%clk 0:03:00]}  Nf6 {[%clk 0:02:59]} 4. c4 {[%clk 0:02:59]}  g6 {[%clk 0:03:00]} 5. Nc3 {[%clk 0:02:59]}  Bg7 {[%clk 0:03:00]} 6. Nf3 {[%clk 0:02:59]}  O-O {[%clk 0:03:00]} 7. Ne5 {[%clk 0:02:59]}  Ne4 {[%clk 0:02:54]} 8. Bd3 {[%clk 0:02:48]}  f6 {[%clk 0:02:46]} 9. Nf3 {[%clk 0:02:47]}  Bf5 {[%clk 0:02:33]} 10. Bxe4 {[%clk 0:02:40]}  Bxe4 {[%clk 0:02:29]} 11. Nxe4 {[%clk 0:02:39]}  dxe4 {[%clk 0:02:29]} 12. Nd2 {[%clk 0:02:40]}  f5 {[%clk 0:02:26]} 13. O-O {[%clk 0:02:35]}  Nd7 {[%clk 0:02:25]} 14. c5 {[%clk 0:02:34]}  Kh8 {[%clk 0:02:24]} 15. Nc4 {[%clk 0:02:27]}  Re8 {[%clk 0:02:23]} 16. Rc1 {[%clk 0:02:19]}  b5 {[%clk 0:02:08]} 17. cxb6 {[%clk 0:02:13]}  axb6 {[%clk 0:02:09]} 18. Qb3 {[%clk 0:02:11]}  b5 {[%clk 0:02:07]} 19. Ne5 {[%clk 0:02:08]}  Nxe5 {[%clk 0:02:07]} 20. Bxe5 {[%clk 0:02:07]}  Bxe5 {[%clk 0:02:06]} 21. dxe5 {[%clk 0:02:08]}  Rc8 {[%clk 0:02:06]} 22. Rfd1 {[%clk 0:02:02]}  Qc7 {[%clk 0:02:05]} 23. e6 {[%clk 0:01:58]}  Red8 {[%clk 0:02:01]} 24. g3 {[%clk 0:01:56]}  Kg8 {[%clk 0:02:00]} 25. Qc3 {[%clk 0:01:53]}  Rd6 {[%clk 0:01:56]} 26. Rxd6 {[%clk 0:01:40]}  Qxd6 {[%clk 0:01:57]} 27. Qb3 {[%clk 0:01:40]}  Rd8 {[%clk 0:01:49]} 28. Kg2 {[%clk 0:01:40]}  Rb8 {[%clk 0:01:39]} 29. Rd1 {[%clk 0:01:35]}  Qe5 {[%clk 0:01:33]} 30. Rd7 {[%clk 0:01:33]}  Kf8 {[%clk 0:01:31]} 31. a3 {[%clk 0:01:17]}  c5 {[%clk 0:01:31]} 32. Qd5 {[%clk 0:01:10]}  Qxd5 {[%clk 0:01:30]} 33. Rxd5 {[%clk 0:01:11]}  Rc8 {[%clk 0:01:30]} 34. Rd7 {[%clk 0:01:03]}  Rc6 {[%clk 0:01:27]} 35. Rb7 {[%clk 0:01:01]}  b4 {[%clk 0:01:27]} 36. axb4 {[%clk 0:00:58]}  cxb4 {[%clk 0:01:28]} 37. Rxb4 {[%clk 0:00:58]}  Rxe6 {[%clk 0:01:29]} 38. Rb8+ {[%clk 0:00:45]}  Kf7 {[%clk 0:01:28]} 39. Kf1 {[%clk 0:00:45]}  Rc6 {[%clk 0:01:28]} 40. b4 {[%clk 0:00:44]}  Rc1+ {[%clk 0:01:27]} 41. Ke2 {[%clk 0:00:38]}  Rc2+ {[%clk 0:01:25]} 42. Ke1 {[%clk 0:00:39]}  Rb2 {[%clk 0:01:25]} 43. b5 {[%clk 0:00:37]}  Kg7 {[%clk 0:01:13]} 44. b6 {[%clk 0:00:37]}  e5 {[%clk 0:01:12]} 45. b7 {[%clk 0:00:36]}  Kh6 {[%clk 0:01:11]} 46. h4 {[%clk 0:00:35]}  Kh5 {[%clk 0:01:10]} 47. Kd1 {[%clk 0:00:32]}  Kg4 {[%clk 0:01:09]} 48. Kc1 {[%clk 0:00:32]}  Rb6 {[%clk 0:01:09]} 49. Kc2 {[%clk 0:00:28]}  Kf3 {[%clk 0:01:09]} 50. Kc3 {[%clk 0:00:28]}  Kxf2 {[%clk 0:01:09]} 51. Kc4 {[%clk 0:00:28]}  Kxe3 {[%clk 0:01:00]} 52. Kc5 {[%clk 0:00:28]}  Rb1 {[%clk 0:01:00]} 53. Kc6 {[%clk 0:00:28]}  f4 {[%clk 0:00:56]} 54. Ra8 {[%clk 0:00:17]}  fxg3 {[%clk 0:00:40]} 55. Ra3+ {[%clk 0:00:16]}  Kf2 {[%clk 0:00:37]} 56. Ra2+ {[%clk 0:00:16]}  Kf3 {[%clk 0:00:37]} 57. Ra5 {[%clk 0:00:14]}  g2 {[%clk 0:00:33]} 58. Rb5 {[%clk 0:00:13]}  Rxb5 {[%clk 0:00:33]} 59. Kxb5 {[%clk 0:00:13]}  g1=Q {[%clk 0:00:34]} 0-1


[Site "https://www.chess.com"]

[Event "Titled Tuesday Blitz April 12 Early 2022"]
[White "Bortnyk, Olexandr"]
[Black "Shimanov, Aleksandr"]
[WhiteFideId "14120828"]
[BlackFideId "4198603"]
[WhiteElo "2723"]
[BlackElo "2636"]
[Result "1-0"]
[Round "06"]
[TimeControl "180+1"]
[Date "2022.04.12"]
[WhiteClock "0:00:05"]
[BlackClock "0:00:02"]

1. e4 {[%clk 0:02:59]}  e5 {[%clk 0:02:54]} 2. Bc4 {[%clk 0:02:59]}  Nf6 {[%clk 0:02:50]} 3. d3 {[%clk 0:02:58]}  Nc6 {[%clk 0:02:46]} 4. Nc3 {[%clk 0:02:58]}  Bb4 {[%clk 0:02:44]} 5. Bd2 {[%clk 0:02:58]}  Bxc3 {[%clk 0:02:31]} 6. Bxc3 {[%clk 0:02:57]}  d5 {[%clk 0:02:31]} 7. exd5 {[%clk 0:02:43]}  Nxd5 {[%clk 0:02:32]} 8. Ne2 {[%clk 0:02:38]}  O-O {[%clk 0:02:30]} 9. O-O {[%clk 0:02:38]}  Be6 {[%clk 0:02:29]} 10. Bd2 {[%clk 0:02:37]}  Qd6 {[%clk 0:02:25]} 11. Re1 {[%clk 0:02:21]}  Rfe8 {[%clk 0:02:23]} 12. a3 {[%clk 0:02:21]}  Nf6 {[%clk 0:02:21]} 13. Bxe6 {[%clk 0:02:19]}  Rxe6 {[%clk 0:02:21]} 14. Ng3 {[%clk 0:02:19]}  Qd7 {[%clk 0:02:17]} 15. Bc3 {[%clk 0:02:14]}  Rae8 {[%clk 0:02:16]} 16. Qf3 {[%clk 0:02:14]}  Qd5 {[%clk 0:02:12]} 17. Ne4 {[%clk 0:02:03]}  Nxe4 {[%clk 0:02:11]} 18. Rxe4 {[%clk 0:01:58]}  f6 {[%clk 0:02:04]} 19. Rae1 {[%clk 0:01:56]}  Qd7 {[%clk 0:02:01]} 20. h4 {[%clk 0:01:51]}  Nd8 {[%clk 0:01:51]} 21. Rg4 {[%clk 0:01:40]}  c5 {[%clk 0:01:45]} 22. h5 {[%clk 0:01:35]}  Nf7 {[%clk 0:01:43]} 23. Bd2 {[%clk 0:01:30]}  h6 {[%clk 0:01:35]} 24. Qf5 {[%clk 0:01:20]}  Rd6 {[%clk 0:01:21]} 25. Qf3 {[%clk 0:01:00]}  Rd4 {[%clk 0:00:58]} 26. Rg6 {[%clk 0:00:52]}  Nh8 {[%clk 0:00:43]} 27. Rg3 {[%clk 0:00:47]}  Kh7 {[%clk 0:00:34]} 28. Re4 {[%clk 0:00:18]}  f5 {[%clk 0:00:27]} 29. Rxd4 {[%clk 0:00:17]}  cxd4 {[%clk 0:00:28]} 30. c3 {[%clk 0:00:13]}  dxc3 {[%clk 0:00:27]} 31. Bxc3 {[%clk 0:00:14]}  Nf7 {[%clk 0:00:19]} 32. Rg6 {[%clk 0:00:14]}  Nh8 {[%clk 0:00:18]} 33. Rg3 {[%clk 0:00:12]}  Nf7 {[%clk 0:00:18]} 34. Qe2 {[%clk 0:00:12]}  f4 {[%clk 0:00:12]} 35. Qe4+ {[%clk 0:00:11]}  Kh8 {[%clk 0:00:12]} 36. Rg6 {[%clk 0:00:10]}  Ng5 {[%clk 0:00:10]} 37. Qc4 {[%clk 0:00:07]}  Qg4 {[%clk 0:00:08]} 38. Qb5 {[%clk 0:00:04]}  Rf8 {[%clk 0:00:04]} 39. Rxg7 {[%clk 0:00:02]}  Kxg7 {[%clk 0:00:03]} 40. Qxe5+ {[%clk 0:00:02]}  Kf7 {[%clk 0:00:04]} 41. Qf6+ {[%clk 0:00:01]}  Ke8 {[%clk 0:00:05]} 42. Qg6+ {[%clk 0:00:02]}  Rf7 {[%clk 0:00:05]} 43. Qg8+ {[%clk 0:00:02]}  Kd7 {[%clk 0:00:05]} 44. Qg6 {[%clk 0:00:01]}  Nf3+ {[%clk 0:00:03]} 45. Kf1 {[%clk 0:00:01]}  Qxg6 {[%clk 0:00:03]} 46. hxg6 {[%clk 0:00:02]}  Rf8 {[%clk 0:00:03]} 47. gxf3 {[%clk 0:00:02]}  Rg8 {[%clk 0:00:04]} 48. g7 {[%clk 0:00:03]}  Ke6 {[%clk 0:00:04]} 49. Kg2 {[%clk 0:00:04]}  Kf5 {[%clk 0:00:05]} 50. Kh3 {[%clk 0:00:04]}  Kg5 {[%clk 0:00:05]} 51. a4 {[%clk 0:00:04]}  a6 {[%clk 0:00:05]} 52. Be5 {[%clk 0:00:04]}  b5 {[%clk 0:00:04]} 53. axb5 {[%clk 0:00:04]}  axb5 {[%clk 0:00:04]} 54. d4 {[%clk 0:00:05]}  Kf5 {[%clk 0:00:03]} 55. Kh4 {[%clk 0:00:06]}  Re8 {[%clk 0:00:02]} 56. Kh5 {[%clk 0:00:05]} 1-0


[Site "https://www.chess.com"]

[Event "Titled Tuesday Blitz April 12 Early 2022"]
[White "Bryakin, Mikhail"]
[Black "Tan, Jun Ying"]
[WhiteFideId "4165314"]
[BlackFideId "5710413"]
[WhiteElo "2417"]
[BlackElo "1827"]
[Result "1-0"]
[Round "06"]
[TimeControl "180+1"]
[Date "2022.04.13"]
[WhiteClock "0:00:04"]
[BlackClock "0:00:39"]

1. e4 {[%clk 0:03:00]}  c5 {[%clk 0:03:00]} 2. Nf3 {[%clk 0:02:56]}  Nc6 {[%clk 0:03:01]} 3. Bb5 {[%clk 0:02:56]}  d6 {[%clk 0:03:01]} 4. Bxc6+ {[%clk 0:02:56]}  bxc6 {[%clk 0:03:00]} 5. O-O {[%clk 0:02:56]}  e5 {[%clk 0:03:01]} 6. d3 {[%clk 0:02:56]}  f5 {[%clk 0:02:59]} 7. Bg5 {[%clk 0:02:51]}  Nf6 {[%clk 0:02:57]} 8. exf5 {[%clk 0:02:51]}  Bxf5 {[%clk 0:02:55]} 9. Nbd2 {[%clk 0:02:52]}  Be7 {[%clk 0:02:55]} 10. Nc4 {[%clk 0:02:48]}  O-O {[%clk 0:02:53]} 11. Qd2 {[%clk 0:02:47]}  Nd5 {[%clk 0:02:41]} 12. Bxe7 {[%clk 0:02:44]}  Qxe7 {[%clk 0:02:42]} 13. Ne3 {[%clk 0:02:41]}  Be6 {[%clk 0:02:40]} 14. Nxd5 {[%clk 0:02:31]}  cxd5 {[%clk 0:02:37]} 15. Ne1 {[%clk 0:02:22]}  d4 {[%clk 0:02:33]} 16. f3 {[%clk 0:02:19]}  Rab8 {[%clk 0:02:29]} 17. b3 {[%clk 0:02:19]}  d5 {[%clk 0:02:21]} 18. c3 {[%clk 0:02:18]}  Qd6 {[%clk 0:02:11]} 19. Nc2 {[%clk 0:02:17]}  Rf6 {[%clk 0:02:02]} 20. Rae1 {[%clk 0:02:14]}  Rbf8 {[%clk 0:01:56]} 21. cxd4 {[%clk 0:02:13]}  cxd4 {[%clk 0:01:45]} 22. Qe2 {[%clk 0:02:13]}  Rf5 {[%clk 0:01:44]} 23. Nxd4 {[%clk 0:02:14]}  Qb6 {[%clk 0:01:26]} 24. Qe3 {[%clk 0:02:06]}  Qxd4 {[%clk 0:01:08]} 25. Qxd4 {[%clk 0:02:06]}  exd4 {[%clk 0:01:09]} 26. Rxe6 {[%clk 0:02:07]}  R8f6 {[%clk 0:01:09]} 27. Rfe1 {[%clk 0:02:06]}  Kf7 {[%clk 0:01:01]} 28. Re7+ {[%clk 0:02:06]}  Kg6 {[%clk 0:01:02]} 29. Rxa7 {[%clk 0:02:07]}  Rc6 {[%clk 0:01:02]} 30. Re2 {[%clk 0:02:03]}  Rc1+ {[%clk 0:01:01]} 31. Kf2 {[%clk 0:02:03]}  Kh6 {[%clk 0:01:01]} 32. Ra4 {[%clk 0:02:01]}  Rh5 {[%clk 0:00:58]} 33. Rxd4 {[%clk 0:01:56]}  Rxh2 {[%clk 0:00:58]} 34. Rxd5 {[%clk 0:01:57]}  Rhh1 {[%clk 0:00:57]} 35. Kg3 {[%clk 0:01:56]}  g6 {[%clk 0:00:56]} 36. Rd7 {[%clk 0:01:56]}  Ra1 {[%clk 0:00:53]} 37. Ree7 {[%clk 0:01:54]}  Kg5 {[%clk 0:00:53]} 38. Rxh7 {[%clk 0:01:54]}  Rxh7 {[%clk 0:00:52]} 39. Rxh7 {[%clk 0:01:55]}  Rxa2 {[%clk 0:00:52]} 40. Rd7 {[%clk 0:01:56]}  Rb2 {[%clk 0:00:52]} 41. Rd5+ {[%clk 0:01:54]}  Kf6 {[%clk 0:00:52]} 42. Rb5 {[%clk 0:01:54]}  Rd2 {[%clk 0:00:52]} 43. Kf4 {[%clk 0:01:52]}  Rxg2 {[%clk 0:00:45]} 44. Rb6+ {[%clk 0:01:52]}  Kf7 {[%clk 0:00:44]} 45. d4 {[%clk 0:01:53]}  Rd2 {[%clk 0:00:45]} 46. Ke3 {[%clk 0:01:53]}  Rd1 {[%clk 0:00:45]} 47. b4 {[%clk 0:01:54]}  g5 {[%clk 0:00:42]} 48. b5 {[%clk 0:01:54]}  Rb1 {[%clk 0:00:41]} 49. Rb7+ {[%clk 0:01:52]}  Ke6 {[%clk 0:00:41]} 50. Rb8 {[%clk 0:01:53]}  Re1+ {[%clk 0:00:38]} 51. Kd2 {[%clk 0:01:53]}  Rf1 {[%clk 0:00:39]} 52. Ke2 {[%clk 0:01:53]}  Rb1 {[%clk 0:00:38]} 53. b6 {[%clk 0:01:54]}  Rb4 {[%clk 0:00:37]} 54. b7 {[%clk 0:01:53]}  Kd7 {[%clk 0:00:25]} 55. Rg8 {[%clk 0:01:53]}  Rxb7 {[%clk 0:00:26]} 56. Rg7+ {[%clk 0:01:53]}  Kc6 {[%clk 0:00:26]} 57. Rxb7 {[%clk 0:01:54]}  Kxb7 {[%clk 0:00:27]} 58. Ke3 {[%clk 0:01:54]}  Kc6 {[%clk 0:00:28]} 59. Ke4 {[%clk 0:01:55]}  Kd6 {[%clk 0:00:27]} 60. Kf5 {[%clk 0:01:55]}  Kd5 {[%clk 0:00:27]} 61. Kxg5 {[%clk 0:01:56]}  Kxd4 {[%clk 0:00:28]} 62. f4 {[%clk 0:01:57]}  Kd5 {[%clk 0:00:29]} 63. f5 {[%clk 0:01:57]}  Kd6 {[%clk 0:00:29]} 64. Kg6 {[%clk 0:01:58]}  Ke7 {[%clk 0:00:30]} 65. Kg7 {[%clk 0:01:58]}  Ke8 {[%clk 0:00:30]} 66. f6 {[%clk 0:01:59]}  Kd7 {[%clk 0:00:31]} 67. f7 {[%clk 0:02:00]}  Kc6 {[%clk 0:00:31]} 68. f8=Q {[%clk 0:02:01]}  Kb5 {[%clk 0:00:32]} 69. Qd6 {[%clk 0:02:01]}  Kc4 {[%clk 0:00:33]} 70. Kf6 {[%clk 0:02:01]}  Kb3 {[%clk 0:00:34]} 71. Qc5 {[%clk 0:02:01]}  Kb2 {[%clk 0:00:34]} 72. Qc4 {[%clk 0:02:01]}  Ka3 {[%clk 0:00:34]} 73. Qb5 {[%clk 0:02:02]}  Ka2 {[%clk 0:00:35]} 74. Qb4 {[%clk 0:02:02]}  Ka1 {[%clk 0:00:36]} 75. Ke5 {[%clk 0:02:03]}  Ka2 {[%clk 0:00:37]} 76. Kd4 {[%clk 0:02:04]}  Ka1 {[%clk 0:00:38]} 77. Kc3 {[%clk 0:02:04]}  Ka2 {[%clk 0:00:39]} 78. Qb2# {[%clk 0:00:04]} 1-0


[Site "https://www.chess.com"]